bitfinex/quotes_SOLUSD_20250401
["timestamp","ask_amount","ask_price","bid_price","bid_amount"]
[1743496117209,17.90475994,129.49,129.48,7.77596109]
[1743496118499,25.62735994,129.49,129.48,7.77596109]
[1743496118716,17.90475994,129.49,129.48,7.77596109]
[1743496118914,17.90475994,129.49,129.48,7.75596109]
[1743496119121,0.03,129.49,129.48,7.75596109]
[1743496119423,35.77951988,129.49,129.48,0.03596109]
[1743496120125,17.90475994,129.49,129.48,0.03596109]
[1743496121524,25.62735994,129.49,129.48,0.03596109]
[1743496122022,7.7526,129.49,129.48,0.03596109]
[1743496122203,25.62735994,129.49,129.48,0.03596109]
[1743496123716,43.50211988,129.49,129.48,0.03596109]
[1743496124405,62.80861988,129.49,129.46,7.7]
[1743496124621,17.87475994,129.47,129.46,7.7]
[1743496125625,7.7243,129.46,129.41,20.0]
[1743496125837,17.87475994,129.43,129.42,7.7]
[1743496127132,17.87475994,129.43,129.41,20.0]
[1743496127317,81.7,129.45,129.42,7.7]
[1743496127509,17.87475994,129.43,129.42,7.7]
[1743496127834,25.60085994,129.43,129.42,7.7]
[1743496128910,17.87475994,129.43,129.42,7.7]
[1743496129229,81.7,129.45,129.42,7.7]
[1743496129535,17.87475994,129.44,129.42,7.7]
[1743496129721,99.57475994,129.45,129.43,20.0]
[1743496131339,17.87475994,129.46,129.45,20.0]
[1743496132226,17.87475994,129.47,129.45,20.0]
[1743496132428,17.87475994,129.46,129.45,20.0]
[1743496135332,89.4232,129.48,129.45,20.0]
[1743496135511,17.87475994,129.46,129.45,20.0]
[1743496136526,7.7528,129.49,129.45,20.0]
[1743496136527,0.03,129.49,129.48,20.0]
[1743496136831,0.03,129.49,129.48,35.70752314]
[1743496137141,1.09647697,129.57,129.54,0.14216157]
[1743496137318,1.09647697,129.57,129.56,20.0]
[1743496137518,18.97123691,129.57,129.55,7.7]
[1743496137840,18.97123691,129.57,129.47,19.14964886]
[1743496137841,1.6091,129.55,129.48,20.0]
[1743496138145,17.87475994,129.49,129.46,7.72]
[1743496138455,17.87475994,129.47,129.46,7.72]
[1743496138644,25.59845994,129.47,129.46,7.72]
[1743496139116,7.7226,129.49,129.46,7.72]
[1743496139314,17.87475994,129.47,129.46,7.72]
[1743496139511,17.87475994,129.47,129.46,7.86216157]
[1743496139824,17.87475994,129.47,129.41,0.20516157]
[1743496139825,83.2206,129.46,129.41,0.063]
[1743496140032,17.87475994,129.42,129.41,0.063]
[1743496140818,7.7255,129.44,129.41,0.063]
[1743496141138,81.7,129.48,129.43,20.0]
[1743496141441,81.7,129.48,129.46,0.14216157]
[1743496141651,17.87475994,129.49,129.47,20.0]
[1743496141851,17.90475994,129.49,129.47,20.0]
[1743496142020,17.87475994,129.48,129.47,20.0]
[1743496142327,17.90475994,129.49,129.47,20.0]
[1743496142529,17.87475994,129.48,129.47,20.0]
[1743496143120,0.03,129.49,129.47,20.0]
[1743496143425,17.87475994,129.48,129.47,20.0]
[1743496143846,17.87475994,129.5,129.47,20.0]
[1743496144227,81.7,129.53,129.47,20.0]
[1743496144424,17.87475994,129.5,129.49,20.0]
[1743496144643,17.87475994,129.5,129.49,27.8]
[1743496144830,81.7,129.53,129.49,27.8]
[1743496145032,17.87475994,129.51,129.49,27.8]
[1743496145229,17.87475994,129.52,129.49,27.8]
[1743496145617,0.14216157,129.62,129.49,27.8]
[1743496145618,82.79647697,129.57,129.51,20.0]
[1743496145830,17.87475994,129.56,129.53,20.0]
[1743496146023,82.79647697,129.57,129.54,7.78]
[1743496146234,17.87475994,129.55,129.54,7.78]
[1743496146750,82.79647697,129.57,129.54,7.78]
[1743496146927,17.87475994,129.56,129.54,7.78]
[1743496148423,82.79647697,129.57,129.55,20.0]
[1743496148625,17.87475994,129.56,129.55,20.0]
[1743496149536,81.7,129.55,129.5,222.58]
[1743496149736,99.57475994,129.54,129.53,7.8]
[1743496149929,35.74951988,129.54,129.5,27.8]
[1743496150139,17.87475994,129.51,129.5,7.8]
[1743496151150,81.7,129.5,129.46,20.0]
[1743496151368,17.87475994,129.47,129.44,20.14216157]
[1743496151531,17.87475994,129.45,129.44,20.14216157]
[1743496151736,17.87475994,129.45,129.44,27.92216157]
[1743496152446,17.87475994,129.45,129.42,242.58]
[1743496152657,17.87475994,129.43,129.42,242.58]
[1743496152828,17.87475994,129.43,129.42,250.36]
[1743496154646,25.60085994,129.43,129.42,250.36]
[1743496154854,25.60085994,129.43,129.42,7.76]
[1743496155032,43.47561988,129.43,129.41,0.063]
[1743496155238,35.74951988,129.42,129.41,0.063]
[1743496155436,89.8269,129.41,129.35,0.063]
[1743496155742,89.8269,129.41,129.34,0.063]
[1743496155743,35.74951988,129.36,129.34,0.063]
[1743496156058,99.57475994,129.35,129.34,0.063]
[1743496156361,17.87475994,129.35,129.34,0.063]
[1743496156555,81.7,129.34,129.29,0.063]
[1743496156939,17.87475994,129.3,129.29,0.063]
[1743496157846,26.9096783,129.3,129.29,0.063]
[1743496158029,26.9096783,129.3,129.29,7.74]
[1743496158426,5.32349895,129.33,129.3,20.0]
[1743496158864,26.9096783,129.33,129.3,20.0]
[1743496159153,26.9096783,129.31,129.29,7.74]
[1743496159328,26.9096783,129.3,129.29,7.76]
[1743496159966,7.733,129.32,129.29,7.76]
[1743496159967,71.22774484,129.37,129.33,20.0]
[1743496160144,71.22774484,129.37,129.34,7.78]
[1743496160482,26.9096783,129.36,129.34,7.78]
[1743496160864,26.9096783,129.36,129.3,0.28432314]
[1743496161166,26.9096783,129.36,129.29,242.7]
[1743496161331,26.9096783,129.36,129.34,20.0]
[1743496161670,26.9096783,129.37,129.34,20.0]
[1743496162037,26.9096783,129.37,129.35,7.76]
[1743496162440,81.7,129.39,129.35,7.76]
[1743496162761,81.7,129.39,129.37,20.0]
[1743496163139,108.6096783,129.39,129.37,20.0]
[1743496163346,26.9096783,129.38,129.37,20.0]
[1743496164760,26.9096783,129.38,129.35,20.0]
[1743496164969,89.4286,129.39,129.36,7.74]
[1743496165269,89.4286,129.39,129.35,7.78]
[1743496165270,26.9096783,129.37,129.35,7.78]
[1743496165567,81.7,129.38,129.35,7.78]
[1743496165568,26.9096783,129.36,129.35,7.78]
[1743496165736,26.9096783,129.36,129.34,7.78]
[1743496165942,26.9096783,129.35,129.34,7.78]
[1743496167272,26.9096783,129.35,129.31,20.0]
[1743496167574,26.9096783,129.35,129.29,222.7]
[1743496167575,26.9096783,129.32,129.29,242.7]
[1743496167740,26.9096783,129.3,129.29,230.5]
[1743496168356,26.9096783,129.3,129.29,7.8]
[1743496170441,34.6436783,129.3,129.28,7.863]
[1743496170639,26.9096783,129.29,129.28,7.863]
[1743496171140,26.9096783,129.31,129.28,7.863]
[1743496171345,26.9096783,129.31,129.29,20.0]
[1743496172084,26.9096783,129.31,129.28,7.863]
[1743496172305,0.03,129.38,129.37,20.0]
[1743496172472,0.03,129.38,129.37,27.82]
[1743496172994,0.03,129.38,129.37,28.10432314]
[1743496173349,0.03,129.38,129.37,46.753972]
[1743496173779,0.03,129.38,129.37,54.483672]
[1743496174565,0.03,129.38,129.37,35.83402314]
[1743496174768,0.03,129.38,129.37,35.91402314]
[1743496175581,0.03,129.38,129.37,28.18432314]
[1743496175888,0.03,129.38,129.37,35.91402314]
[1743496176265,0.03,129.38,129.37,28.18432314]
[1743496176654,0.03,129.38,129.37,27.9]
[1743496177282,0.03,129.38,129.37,28.18432314]
[1743496179889,0.03,129.38,129.37,35.91402314]
[1743496181583,0.03,129.38,129.37,54.563672]
[1743496182376,0.03,129.38,129.37,35.91402314]
[1743496183007,0.03,129.38,129.37,54.563672]
[1743496183892,0.03,129.38,129.37,35.91402314]
[1743496184497,0.03,129.47,129.46,20.14216157]
[1743496184699,0.03,129.47,129.46,28.32216157]
[1743496185707,0.03,129.47,129.46,36.18862314]
[1743496187518,0.03,129.47,129.46,28.32216157]
[1743496188107,26.9396783,129.47,129.44,8.18]
[1743496188289,26.9096783,129.45,129.44,8.18]
[1743496190199,26.9096783,129.46,129.44,8.18]
[1743496190804,26.9096783,129.45,129.44,8.18]
[1743496192015,34.6345783,129.45,129.44,8.18]
[1743496193213,34.6340783,129.46,129.44,8.18]
[1743496193927,41.2430783,129.47,129.44,8.18]
[1743496194222,26.9096783,129.46,129.44,8.18]
[1743496196023,34.6343783,129.46,129.44,8.18]
[1743496196617,26.9096783,129.45,129.44,8.18]
[1743496197122,41.2430783,129.47,129.44,28.18]
[1743496197308,34.6636783,129.47,129.44,8.18]
[1743496197494,0.03,129.47,129.46,20.0]
[1743496197691,0.03,129.47,129.46,20.14216157]
[1743496199423,0.03,129.49,129.48,20.28432314]
[1743496199597,0.03,129.49,129.48,242.94432314]
[1743496200120,0.03,129.51,129.5,20.28432314]
[1743496200325,0.03,129.56,129.55,20.14216157]
[1743496200626,0.03,129.56,129.55,28.70432314]
[1743496201190,0.03,129.56,129.55,47.353972]
[1743496201393,1.09647697,129.57,129.56,0.28432314]
[1743496201623,23.94491029,129.63,129.62,40.28432314]
[1743496201795,23.94491029,129.63,129.62,48.72432314]
[1743496202217,23.94491029,129.63,129.62,28.58216157]
[1743496202414,23.94491029,129.63,129.62,55.088772]
[1743496202616,10.5522217,129.66,129.63,18.933972]
[1743496202825,10.5522217,129.66,129.65,58.933972]
[1743496203122,10.5522217,129.66,129.65,28.76432314]
[1743496203298,50.65016301,129.7,129.68,20.0]
[1743496203807,50.65016301,129.7,129.65,8.48]
[1743496203808,26.72378054,129.69,129.65,20.0]
[1743496204108,50.65016301,129.7,129.67,28.7]
[1743496204324,77.37394355,129.7,129.68,8.7]
[1743496204500,26.72378054,129.69,129.68,8.7]
[1743496204704,26.72378054,129.69,129.64,8.7]
[1743496204917,26.72378054,129.65,129.64,8.7]
[1743496205096,77.63556301,129.7,129.64,8.7]
[1743496205097,26.72378054,129.67,129.64,8.7]
[1743496205292,26.72378054,129.66,129.64,8.7]
[1743496206123,26.72378054,129.65,129.61,242.72216157]
[1743496206332,26.72378054,129.63,129.62,8.78]
[1743496206701,26.166,129.71,129.63,20.0]
[1743496207025,26.72378054,129.64,129.62,8.78]
[1743496207528,26.72378054,129.63,129.6,8.8]
[1743496207714,26.72378054,129.61,129.6,8.8]
[1743496207919,20.0,129.58,129.46,20.0]
[1743496208103,26.72378054,129.48,129.46,20.0]
[1743496208425,26.72378054,129.54,129.46,20.0]
[1743496208426,26.72378054,129.5,129.46,20.0]
[1743496208632,26.72378054,129.51,129.48,20.0]
[1743496209099,34.44478054,129.52,129.48,20.0]
[1743496209297,26.72378054,129.5,129.48,20.0]
[1743496210024,7.716,129.6,129.54,20.0]
[1743496210209,26.72378054,129.58,129.54,28.88]
[1743496210407,26.72378054,129.6,129.55,0.14216157]
[1743496210610,1.5992,129.64,129.59,20.0]
[1743496210611,26.72378054,129.64,129.59,20.0]
[1743496210924,26.72378054,129.64,129.6,8.9]
[1743496211126,7.7118,129.67,129.61,20.14216157]
[1743496211422,22.0116679,129.7,129.65,20.0]
[1743496211423,7.7108,129.69,129.65,20.0]
[1743496211628,34.43458054,129.69,129.66,9.22]
[1743496211933,2.7350679,129.7,129.69,0.14216157]
[1743496213038,2.7350679,129.7,129.69,0.28432314]
[1743496213238,2.7350679,129.7,129.69,0.14216157]
[1743496213419,2.7350679,129.7,129.68,242.48]
[1743496213731,37.16904844,129.7,129.68,232.28]
[1743496214026,37.16904844,129.7,129.68,252.28]
[1743496214224,2.7350679,129.7,129.68,252.28]
[1743496215121,29.45884844,129.7,129.68,252.28]
[1743496215319,37.16914844,129.7,129.68,252.28]
[1743496215520,2.7350679,129.7,129.68,252.28]
[1743496215820,2.7350679,129.7,129.69,0.14216157]
[1743496216030,2.7350679,129.7,129.69,0.28432314]
[1743496217728,2.7350679,129.7,129.69,0.14216157]
[1743496218033,2.7350679,129.7,129.69,10.10432314]
[1743496218407,2.7350679,129.7,129.69,17.81492314]
[1743496218606,2.7350679,129.7,129.69,36.964572]
[1743496218814,7.7023,129.83,129.78,20.0]
[1743496219020,7.7023,129.83,129.79,10.14]
[1743496219021,26.72378054,129.81,129.79,10.14]
[1743496219224,26.72378054,129.82,129.8,20.0]
[1743496219414,7.7023,129.83,129.8,20.0]
[1743496219621,26.72378054,129.81,129.74,20.0]
[1743496219845,26.72378054,129.8,129.77,20.0]
[1743496220219,7.7023,129.83,129.8,0.14216157]
[1743496220421,26.72378054,129.83,129.81,10.5]
[1743496220625,26.72378054,129.82,129.78,20.0]
[1743496220826,26.72378054,129.82,129.68,230.191]
[1743496220827,26.72378054,129.79,129.76,10.52]
[1743496221135,26.72378054,129.77,129.72,0.14216157]
[1743496221334,26.72378054,129.76,129.73,20.0]
[1743496221520,26.72378054,129.75,129.72,0.28432314]
[1743496221833,26.72378054,129.74,129.71,20.0]
[1743496222240,26.72378054,129.74,129.72,10.48]
[1743496222531,34.43208054,129.73,129.69,20.0]
[1743496222833,26.72378054,129.7,129.69,20.0]
[1743496223036,26.72378054,129.71,129.69,20.0]
[1743496224238,26.979,129.73,129.69,20.0]
[1743496224409,53.70278054,129.73,129.69,20.0]
[1743496224614,34.43208054,129.73,129.69,20.0]
[1743496224810,26.72378054,129.72,129.69,20.0]
[1743496225533,26.72378054,129.72,129.71,20.0]
[1743496225727,26.72378054,129.72,129.7,0.14216157]
[1743496226035,26.72378054,129.72,129.69,20.0]
[1743496226238,26.72378054,129.71,129.69,20.0]
[1743496226736,34.43368054,129.71,129.69,20.0]
[1743496227135,26.72378054,129.7,129.68,10.64216157]
[1743496227333,26.72378054,129.69,129.67,30.44]
[1743496227527,26.72378054,129.68,129.65,0.14216157]
[1743496227734,26.72378054,129.67,129.66,10.44]
[1743496227934,26.72378054,129.69,129.66,30.44]
[1743496228629,26.72378054,129.68,129.66,30.44]
[1743496229141,7.7108,129.69,129.66,30.44]
[1743496229335,34.43458054,129.69,129.66,30.44]
[1743496229732,26.72378054,129.69,129.66,30.44]
[1743496229932,26.72378054,129.7,129.68,20.0]
[1743496230131,26.72378054,129.71,129.68,20.0]
[1743496230333,1.6296,129.74,129.7,20.14216157]
[1743496230334,36.06118054,129.74,129.7,20.14216157]
[1743496230636,26.72378054,129.73,129.72,20.0]
[1743496230941,34.43208054,129.73,129.72,10.38]
[1743496231327,34.43208054,129.73,129.68,20.0]
[1743496231328,53.70278054,129.73,129.68,20.0]
[1743496231523,26.72378054,129.69,129.68,20.0]
[1743496232936,34.43438054,129.69,129.68,20.0]
[1743496233331,34.43438054,129.69,129.63,0.20516157]
[1743496233332,34.43438054,129.69,129.64,20.0]
[1743496233533,26.72378054,129.66,129.64,30.32]
[1743496233732,26.72378054,129.66,129.64,30.3]
[1743496233929,26.72378054,129.65,129.64,10.3]
[1743496234243,26.72378054,129.65,129.63,0.063]
[1743496234431,26.72378054,129.64,129.63,0.063]
[1743496235138,34.43738054,129.64,129.63,0.063]
[1743496235736,34.43738054,129.64,129.6,10.3]
[1743496235957,26.72378054,129.61,129.6,10.3]
[1743496236326,26.72378054,129.62,129.6,30.3]
[1743496236828,26.72378054,129.61,129.6,10.3]
[1743496237543,26.72378054,129.61,129.6,30.3]
[1743496237750,34.43918054,129.61,129.6,10.3]
[1743496238542,26.9832,129.71,129.65,20.0]
[1743496238733,26.72378054,129.68,129.66,10.24]
[1743496238937,26.72378054,129.67,129.63,20.0]
[1743496239139,26.72378054,129.66,129.64,10.38216157]
[1743496239340,26.72378054,129.66,129.65,20.0]
[1743496239546,26.72378054,129.67,129.65,20.0]
[1743496240053,7.7101,129.7,129.64,10.24]
[1743496240054,26.72378054,129.66,129.64,10.24]
[1743496240348,26.72378054,129.65,129.64,10.24]
[1743496240546,26.72378054,129.65,129.64,10.2]
[1743496241845,34.43678054,129.65,129.64,10.2]
[1743496242050,34.43678054,129.65,129.63,0.063]
[1743496242239,26.72378054,129.64,129.63,0.063]
[1743496242826,20.0,129.61,129.51,20.063]
[1743496243033,26.72378054,129.52,129.51,20.063]
[1743496243444,18.64964886,129.59,129.51,20.063]
[1743496243647,26.72378054,129.53,129.51,20.063]
[1743496244342,26.72378054,129.52,129.51,0.063]
[1743496245049,34.44458054,129.52,129.51,0.063]
[1743496245435,26.72378054,129.52,129.51,0.063]
[1743496245750,26.72378054,129.53,129.51,20.063]
[1743496245935,26.72378054,129.52,129.51,0.063]
[1743496246533,27.0112,129.58,129.51,20.063]
[1743496246881,26.72378054,129.52,129.51,20.063]
[1743496247264,34.44458054,129.52,129.51,0.063]
[1743496247467,8.1617,129.64,129.57,20.0]
[1743496247762,26.72378054,129.62,129.6,20.0]
[1743496247960,26.72378054,129.62,129.61,10.02]
[1743496248366,26.72378054,129.62,129.58,20.0]
[1743496248687,26.72378054,129.6,129.59,10.0]
[1743496249054,34.43978054,129.6,129.56,20.14216157]
[1743496249285,26.72378054,129.57,129.54,242.4]
[1743496249587,26.72378054,129.58,129.56,20.0]
[1743496249871,26.72378054,129.57,129.55,9.98]
[1743496250053,26.72378054,129.58,129.56,20.0]
[1743496251095,26.72378054,129.59,129.56,20.0]
[1743496251469,34.43918054,129.61,129.59,20.0]
[1743496251801,26.72378054,129.61,129.59,20.0]
[1743496251976,7.7089,129.72,129.67,20.0]
[1743496252297,1.6312,129.73,129.69,20.0]
[1743496252498,38.53068852,129.74,129.69,20.0]
[1743496252667,26.72378054,129.73,129.69,20.0]
[1743496253502,26.72378054,129.72,129.69,20.0]
[1743496253799,26.72378054,129.72,129.68,10.08216157]
[1743496254093,26.72378054,129.71,129.68,10.08216157]
[1743496254317,26.72378054,129.72,129.68,0.14216157]
[1743496254505,26.72378054,129.71,129.69,9.9]
[1743496254889,7.7083,129.73,129.69,9.9]
[1743496255102,7.7083,129.73,129.67,20.0]
[1743496255270,26.72378054,129.7,129.67,20.0]
[1743496255470,26.72378054,129.7,129.68,9.88]
[1743496255667,26.72378054,129.69,129.65,242.4]
[1743496255873,26.72378054,129.68,129.66,9.86]
[1743496256298,37.91774886,129.75,129.67,20.0]
[1743496256603,26.72378054,129.74,129.69,20.0]
[1743496256984,26.72378054,129.71,129.67,20.0]
[1743496257190,26.72378054,129.7,129.68,9.88]
[1743496257409,7.7093,129.72,129.68,9.88]
[1743496257702,26.72378054,129.71,129.68,9.88]
[1743496258085,26.72378054,129.7,129.67,20.0]
[1743496258416,34.43308054,129.72,129.69,9.86]
[1743496258718,53.70528054,129.72,129.69,9.86]
[1743496259119,7.7093,129.72,129.69,9.86]
[1743496259289,7.7365,129.76,129.69,29.86]
[1743496259483,26.72378054,129.71,129.69,29.86]
[1743496259886,26.72378054,129.7,129.69,9.86]
[1743496260584,26.72378054,129.74,129.71,20.0]
[1743496261401,34.43168054,129.74,129.71,20.0]
[1743496261596,26.72378054,129.73,129.71,20.0]
[1743496261791,26.72378054,129.73,129.69,29.86]
[1743496262001,81.7,129.75,129.7,0.14216157]
[1743496262203,116.13088054,129.75,129.71,20.0]
[1743496262400,26.72378054,129.74,129.71,20.0]
[1743496262606,26.72378054,129.72,129.69,29.86]
[1743496262915,108.42378054,129.73,129.69,29.86]
[1743496263113,26.72378054,129.74,129.71,20.0]
[1743496263622,26.72378054,129.72,129.65,242.4]
[1743496263808,26.72378054,129.7,129.68,9.74]
[1743496263988,108.42378054,129.71,129.68,9.74]
[1743496264503,26.72378054,129.7,129.68,9.74]
[1743496264718,108.42378054,129.71,129.68,9.74]
[1743496264912,26.72378054,129.72,129.68,9.74]
[1743496265219,26.72378054,129.71,129.68,9.74]
[1743496265419,26.72378054,129.7,129.68,9.74]
[1743496265636,34.43408054,129.7,129.68,9.88216157]
[1743496265832,7.7103,129.7,129.69,9.7]
[1743496266129,34.43408054,129.7,129.69,9.7]
[1743496266637,34.43408054,129.7,129.65,222.54216157]
[1743496266638,34.43408054,129.7,129.65,242.4]
[1743496266795,26.72378054,129.68,129.66,9.72]
[1743496267135,26.72378054,129.68,129.66,9.7]
[1743496267617,34.43558054,129.67,129.65,222.4]
[1743496267934,26.72378054,129.68,129.66,9.7]
[1743496268236,34.43528054,129.68,129.66,9.7]
[1743496268720,81.7,129.69,129.67,20.0]
[1743496268905,116.13448054,129.69,129.66,9.7]
[1743496269313,116.13448054,129.69,129.68,20.0]
[1743496269314,81.7,129.69,129.68,20.0]
[1743496269502,7.7083,129.73,129.68,20.0]
[1743496269719,26.72378054,129.71,129.68,20.0]
[1743496272025,26.72378054,129.7,129.68,20.0]
[1743496272397,26.72378054,129.7,129.68,29.62]
[1743496272799,26.72378054,129.7,129.68,9.62]
[1743496273016,26.72378054,129.69,129.66,20.0]
[1743496273215,26.72378054,129.67,129.64,20.0]
[1743496273412,7.7098,129.71,129.64,20.0]
[1743496273413,83.3139,129.69,129.64,20.0]
[1743496273721,26.72378054,129.67,129.64,20.0]
[1743496274327,34.43568054,129.67,129.64,20.0]
[1743496275712,26.72378054,129.66,129.64,20.0]
[1743496276103,34.43638054,129.66,129.63,9.663]
[1743496276303,26.72378054,129.66,129.64,20.0]
[1743496276531,34.43628054,129.66,129.65,9.56]
[1743496277309,34.43628054,129.66,129.64,9.54]
[1743496277503,26.72378054,129.65,129.63,0.063]
[1743496277722,26.72378054,129.64,129.63,0.063]
[1743496278232,81.7,129.65,129.63,20.063]
[1743496278727,89.4131,129.65,129.63,20.063]
[1743496279121,116.13688054,129.65,129.63,0.063]
[1743496279520,26.72378054,129.64,129.63,0.063]
[1743496279834,89.4131,129.65,129.63,0.063]
[1743496280036,26.72378054,129.64,129.63,0.063]
[1743496280233,34.43738054,129.64,129.63,0.063]
[1743496281707,25.55918427,129.64,129.63,0.063]
[1743496282411,25.55918427,129.64,129.63,9.503]
[1743496285031,25.55918427,129.64,129.63,0.063]
[1743496286140,44.84328427,129.64,129.57,20.0]
[1743496286310,17.84558427,129.58,129.55,242.44216157]
[1743496286514,17.84558427,129.59,129.56,9.36]
[1743496287234,17.84558427,129.58,129.56,9.36]
[1743496287621,7.713,129.65,129.56,9.36]
[1743496287829,17.84558427,129.62,129.58,20.0]
[1743496288338,17.84558427,129.61,129.56,29.36]
[1743496288538,17.84558427,129.61,129.56,37.078]
[1743496288742,17.84558427,129.62,129.59,20.0]
[1743496289842,17.84558427,129.62,129.57,20.0]
[1743496291049,17.84558427,129.63,129.59,20.0]
[1743496292839,25.55978427,129.63,129.59,20.0]
[1743496293040,17.84558427,129.63,129.59,20.0]
[1743496293236,25.55988427,129.63,129.59,20.0]
[1743496293440,107.25988427,129.63,129.59,20.0]
[1743496293739,17.84558427,129.62,129.57,20.0]
[1743496294142,17.84558427,129.62,129.59,20.0]
[1743496294329,107.25988427,129.63,129.59,20.0]
[1743496294949,17.84558427,129.62,129.59,20.0]
[1743496295317,17.84558427,129.6,129.51,0.063]
[1743496295519,17.84558427,129.53,129.52,20.0]
[1743496295821,17.84558427,129.54,129.52,20.0]
[1743496296052,17.84558427,129.54,129.51,0.063]
[1743496296256,25.56638427,129.52,129.51,0.063]
[1743496298157,7.7208,129.52,129.51,0.063]
[1743496298338,9.3493,129.53,129.51,0.063]
[1743496298646,27.19488427,129.53,129.51,0.063]
[1743496299060,9.3493,129.53,129.51,0.063]
[1743496299550,27.19488427,129.53,129.51,0.063]
[1743496299756,17.84558427,129.52,129.51,0.063]
[1743496300260,25.56638427,129.52,129.51,0.063]
[1743496301338,7.7208,129.52,129.51,0.063]
[1743496302953,25.56638427,129.52,129.51,0.063]
[1743496303368,44.21603313,129.52,129.51,0.063]
[1743496303578,25.56638427,129.52,129.51,0.063]
[1743496304035,7.7208,129.52,129.51,0.063]
[1743496304344,25.56638427,129.52,129.51,0.063]
[1743496304744,7.7208,129.52,129.51,0.063]
[1743496304965,7.7208,129.52,129.51,0.0001]
[1743496305137,25.56638427,129.52,129.5,0.063]
[1743496305337,25.56638427,129.52,129.5,0.0001]
[1743496305555,17.84558427,129.51,129.5,0.0001]
[1743496306367,25.56698427,129.51,129.5,0.0001]
[1743496306750,7.7214,129.51,129.5,0.0001]
[1743496307248,25.56698427,129.51,129.5,0.0001]
[1743496307570,7.7214,129.51,129.5,0.0001]
[1743496308670,25.56698427,129.51,129.5,0.0001]
[1743496309247,44.21663313,129.51,129.5,0.0001]
[1743496309557,7.7214,129.51,129.5,0.0001]
[1743496310341,25.56698427,129.51,129.5,0.0001]
[1743496310653,44.21663313,129.51,129.5,0.0001]
[1743496310852,44.21663313,129.51,129.47,0.0001]
[1743496310853,20.0,129.48,129.47,0.0001]
[1743496311049,56.49523313,129.48,129.47,0.0001]
[1743496311370,23.96288427,129.49,129.47,0.0001]
[1743496311579,81.7,129.48,129.47,0.0001]
[1743496312675,89.4232,129.48,129.41,7.7268]
[1743496312840,81.7,129.47,129.4,36.6876]
[1743496314539,89.424,129.47,129.4,36.6876]
[1743496314737,89.424,129.47,129.4,27.7276]
[1743496314942,81.7,129.46,129.41,8.88]
[1743496315560,81.7,129.46,129.43,20.0]
[1743496315942,81.7,129.46,129.42,0.14216157]
[1743496316252,81.7,129.46,129.42,7.86846157]
[1743496316655,81.7,129.46,129.42,7.7263]
[1743496317160,81.7,129.5,129.44,20.0]
[1743496317864,0.03,129.51,129.48,20.0]
[1743496318170,0.03,129.51,129.5,7.722]
[1743496318968,0.03,129.51,129.49,16.6023]
[1743496320447,0.03,129.51,129.49,8.88]
[1743496320992,81.7,129.5,129.49,8.84]
[1743496321656,81.7,129.5,129.46,222.62]
[1743496321954,81.7,129.5,129.47,8.82]
[1743496322561,89.4221,129.5,129.47,8.82]
[1743496323070,81.7,129.5,129.47,8.82]
[1743496323959,81.7,129.5,129.48,20.0]
[1743496324477,81.7,129.5,129.47,8.883]
[1743496325280,0.03,129.51,129.48,20.0]
[1743496325466,81.7,129.54,129.5,20.0]
[1743496325671,81.7,129.57,129.53,20.0]
[1743496325877,81.7,129.57,129.54,8.78]
[1743496326081,89.4155,129.61,129.55,20.0]
[1743496326285,81.7,129.6,129.55,20.0]